Cogmind - Beta 14 @@@ ROGUE MODE // 2025.03.30 @ 15:30:39 Player: notverysmot Result: Destroyed by H-61 Shepherd with Heavy Assault Cannon Performance ------------- Evolutions (2) 1000 Regions Visited (4) 800 Robots Destroyed (61) 305 Value Destroyed (1513) 1513 Prototype IDs (3) 60 Alien Tech Used (0) 0 Bonus (24) 24 TOTAL SCORE: 3702 Bonus ------- High Alert Combat Kills 24 Cogmind --------- Core Integrity 0/550 Matter 300/300 Energy 100/100 System Corruption 0% Temperature Cool (0) Movement Core (50) Location -8/Materials Parts ------- > --- POWER (1) -------- (None) > --- PROPULSION (2) --- (None) > --- UTILITY (5) ------ Signal Interpreter Transport Network Coupler > --- WEAPON (3) ------- (None) > --- INVENTORY (5) ---- Light Ion Engine Large Storage Unit Peak State ------------ > --- POWER ------------ (None) > --- PROPULSION ------- Armored Treads Armored Treads > --- UTILITY ---------- Signal Interpreter Transport Network Coupler Drone Bay Drone Bay Drone Bay > --- WEAPON ----------- Small Laser > --- INVENTORY -------- Light Ion Engine Large Storage Unit Drone Bay [Rating: 24] Favorites ----------- Power Ion Engine Engine Ion Engine Power Core Light Nuclear Core Propulsion Armored Treads Treads Armored Treads Leg Improved Aluminum Leg Flight Unit Improved Flight Unit Utility Signal Interpreter Device Sensor Array Storage Large Storage Unit Processor Signal Interpreter Weapon EM Pulse Cannon Energy Gun Beam Rifle Energy Cannon EM Pulse Cannon Ballistic Gun Assault Rifle Ballistic Cannon Improved Light Cannon Launcher Grenade Launcher Build | -11 -10 -9 -9 -8 ------- Run | Yrd Mat Mat Sto Mat Slots Evolved 4 | . . 2 . 2 Power . | . . . . . Propulsion . | . . . . . Utility 3 | . . 2 . 1 Weapon 1 | . . . . 1 Parts Attached 62 | 7 17 20 12 6 Power 9 | 2 . 5 1 1 Engine 6 | 2 . 3 1 . Core 3 | . . 2 . 1 Reactor . | . . . . . Propulsion 17 | 2 4 4 7 . Treads 11 | 2 1 4 4 . Leg 5 | . 3 . 2 . Wheel . | . . . . . Hover . | . . . . . Flight 1 | . . . 1 . Utility 17 | 1 5 4 2 5 Device 10 | . 2 1 2 5 Storage 5 | 1 1 3 . . Processor 2 | . 2 . . . Hackware . | . . . . . Protection . | . . . . . Artifact . | . . . . . Weapon 19 | 2 8 7 2 . Energy Gun 2 | . . 1 1 . Energy Cannon 5 | . . 5 . . Ballistic Gun 5 | 2 3 . . . Ballistic Cannon 1 | . . . 1 . Launcher 6 | . 5 1 . . Special Weapon . | . . . . . Impact Weapon . | . . . . . Slashing Weapon . | . . . . . Piercing Weapon . | . . . . . Special Melee Weapon . | . . . . . Unidentified Prototypes 3 | . 1 1 1 . Parts Lost 19 | . 1 2 8 8 Power 4 | . . 1 2 1 Propulsion 4 | . . . 2 2 Utility 5 | . . . 1 4 Weapon 6 | . 1 1 3 1 Highest Loss Streak 8 | . 1 1 4 8 To Critical Strikes . | . . . . . Average Slot Usage (%) 92 | . 97 92 92 62 Engine 8 | . 14 4 9 . Core 2 | . . 5 . 1 Treads 19 | . 18 20 21 13 Leg 3 | . 9 1 . . Device 8 | . 2 11 11 23 Storage 4 | . 2 4 10 . Processor 21 | . 21 22 22 18 Energy Gun 2 | . . . 9 5 Energy Cannon 8 | . . 19 3 . Ballistic Gun 5 | . 16 . . . Ballistic Cannon 1 | . . . 4 . Launcher 4 | . 11 1 . . Peak Build Rating 24 | 6 11 20 20 24 Average Rating 13 | 4 7 17 14 17 On Entrance 10 | . 6 9 16 20 Naked Turns . | . . . . . Heaviest Build 38 | 14 20 38 35 22 Greatest Support 43 | 40 40 43 43 40 Greatest Overweight (x) 7 | . . . 1 7 Average Overweight (x) . | . . . . . Largest Inventory Capacity 25 | 8 10 25 15 5 Average Capacity 8 | 7 5 9 14 5 Most Carried 5 | 4 5 5 5 4 Average Carried 4 | 1 4 4 3 2 Final Capacity 15 | 8 5 15 5 5 Final Carried 5 | 2 5 4 4 2 Class Distribution -------------------- 51% | Skirmisher 48% | Mutant Dominant Class ---------------- Mutant | -10/Materials Skirmisher | -9/Materials Skirmisher | -9/Storage Mutant | -8/Materials Resources | -11 -10 -9 -9 -8 ----------- Run | Yrd Mat Mat Sto Mat Matter Collected 1209 | 270 492 283 132 32 Remotely . | . . . . . Salvage Created 2197 | . 647 883 635 32 Parts 141 | . 42 56 42 1 Haulers Intercepted 3 | . 2 1 . . Recyclers Shooed 1 | . . . 1 . Parts Field Recycled . | . . . . . Retrieved Matter . | . . . . . Parts Self-Destructed . | . . . . . Prevented . | . . . . . Kills | -11 -10 -9 -9 -8 ------- Run | Yrd Mat Mat Sto Mat Combat Hostiles Destroyed 39 | . 12 14 12 1 Melee 1 | . . . . 1 Guns 5 | . 5 . . . Cannons 23 | . . 12 11 . AOE 9 | . 7 2 . . Classes Destroyed 11 | . 8 2 1 . Worker 6 | . 1 2 3 . Builder 3 | . 2 1 . . Hauler 3 | . 2 1 . . Recycler 4 | . 2 2 . . Mechanic 1 | . 1 . . . Watcher 5 | . 3 2 . . Swarmer 6 | . 3 3 . . Grunt 23 | . 9 7 6 1 Brawler 1 | . . . 1 . Duelist 2 | . . 1 1 . Sentry 7 | . . 3 4 . Best Kill Streak 7 | . 7 4 4 1 Combat Bots Only 4 | . 4 2 4 1 Max Kills in Single Turn 1 | . 1 1 1 1 Gunslinging . | . . . . . Exploded 1 | . 1 1 . . Melee 1 | . . . . 1 Uniques/NPCs Destroyed . | . . . . . Combat | -11 -10 -9 -9 -8 -------- Run | Yrd Mat Mat Sto Mat Hostile Shots Fired 380 | . 62 77 152 89 Missed 103 | . 20 22 39 22 Damage Taken 3625 | . 507 584 1455 1079 Core 899 | . 36 81 194 588 Absorbed by Shields 88 | . . . . 88 Regen/Repaired (Parts) 63 | . . 15 48 . Core Remaining (%) 72 | 100 85 . 31 . Volleys Fired 134 | . 47 39 48 . Largest 2 | . 2 2 2 . Hottest 131 | . 60 131 119 . Shots Fired 246 | . 93 78 75 . Gun 107 | . 70 . 37 . Cannon 116 | . . 78 38 . Launcher 23 | . 23 . . . Special . | . . . . . Kinetic 84 | . 70 . 14 . Thermal 42 | . . 5 37 . Explosive 23 | . 23 . . . Electromagnetic 97 | . . 73 24 . Robot Hit Streak 14 | . 14 5 11 . Robot Miss Streak 5 | . 4 5 3 . Penetration Max . | . . . . . Secondary Targets . | . . . . . Shots Hit Robots 145 | . 55 35 55 . Core Hits 86 | . 39 20 20 7 Critical Kills 1 | . 1 . . . Critical Parts Destroyed . | . . . . . Critical Strikes 4 | . 1 1 2 . Burn 1 | . . . 1 . Destroy 1 | . 1 . . . Blast 1 | . . . 1 . Corrupt 1 | . . 1 . . Melee Attacks . | . . . . . Impact . | . . . . . Slashing . | . . . . . Piercing . | . . . . . Sneak Attacks . | . . . . . Combat Hostiles . | . . . . . Follow-up Attacks . | . . . . . Damage Inflicted 3857 | . 1484 1281 1048 44 Guns 962 | . 601 . 361 . Cannons 1650 | . . 974 676 . Explosions 1187 | . 883 304 . . Melee . | . . . . . Ramming 58 | . . 3 11 44 Kinetic 842 | . 601 . 241 . Thermal 685 | . . 324 361 . Explosive 883 | . 883 . . . Electromagnetic 1389 | . . 954 435 . Impact . | . . . . . Slashing . | . . . . . Piercing . | . . . . . Highest Corruption 1 | . . . 1 . Average Corruption 1 | . . . 1 . Corruption Purged . | . . . . . Corruption Blocked . | . . . . . Effects 2 | . . . 2 . Message Errors 1 | . . . 1 . Data Loss (minor) 1 | . . . 1 . Overload Shots . | . . . . . Overflow Damage 44 | . . 44 . . Projectiles 44 | . . 44 . . Explosions . | . . . . . Melee . | . . . . . Knockbacks 1 | . . . 1 . Impact . | . . . . . Kinetic 1 | . . . 1 . Secondary . | . . . . . Self-Inflicted Damage 110 | . 49 48 . 13 Shots 4 | . 2 2 . . Rammed 29 | . . 1 4 24 Targets Rammed 30 | . . 1 4 25 Kicked . | . . . . . Crushed 1 | . . . . 1 Highest Temperature 360 | . 50 192 360 . Average Temperature 75 | . 19 56 112 . Received Heat Transfer 1210 | . 222 168 591 229 Siege Activations . | . . . . . Robots Corrupted . | . . . . . Combat Hostiles . | . . . . . Parts Fried 3 | . . 3 . . Impact Corruptions . | . . . . . Robots Melted 1 | . . . 1 . Combat Hostiles 1 | . . . 1 . Parts Melted 3 | . . . 3 . Heat Transferred 1425 | . . 437 988 . Parts Sabotaged . | . . . . . Parts Stolen . | . . . . . Parts Stripped . | . . . . . Power Chain Reactions 5 | . . 5 . . Alert | -11 -10 -9 -9 -8 ------- Run | Yrd Mat Mat Sto Mat Peak Influence 444 | . 203 411 444 136 Initial 126 | . . 84 126 121 Average 164 | . 110 155 298 114 Maximum Alert Level 2 | . 1 2 2 . Low Security (%) 57 | 100 70 61 14 100 Level 1 38 | . 29 34 74 . Level 2 3 | . . 3 11 . Level 3 . | . . . . . Level 4 . | . . . . . Level 5 . | . . . . . High Security . | . . . . . Max Security . | . . . . . Squads Dispatched 11 | . 2 3 6 . Investigation 4 | . 1 1 2 . Extermination . | . . . . . Reinforcement 4 | . 1 2 1 . Assault . | . . . . . Garrison 3 | . . . 3 . Intercept . | . . . . . Searches Triggered . | . . . . . Construction Impeded . | . . . . . Haulers Reinforced . | . . . . . Active Scanning Responses . | . . . . . Cargo Convoy Interrupts . | . . . . . Stealth | -11 -10 -9 -9 -8 --------- Run | Yrd Mat Mat Sto Mat Distress Signals 9 | . 2 6 1 . Communications Jammed . | . . . . . Distress Signals . | . . . . . Times Spotted 69 | . 16 27 23 3 Peak Tracking Total 7 | . 4 5 6 7 Tactical Retreats 7 | . 1 3 3 . Traps | -11 -10 -9 -9 -8 ------- Run | Yrd Mat Mat Sto Mat Traps Triggered 3 | . 1 . 2 . Indirectly . | . . . . . Trap Hack Attempts . | . . . . . Triggered . | . . . . . Disarmed . | . . . . . Reprogrammed . | . . . . . Reused . | . . . . . Traps Extracted . | . . . . . Installed . | . . . . . Triggered . | . . . . . Machines | -11 -10 -9 -9 -8 ---------- Run | Yrd Mat Mat Sto Mat Machines Disabled 3 | . . 3 . . Max in Single Turn 1 | . . 1 . . Machines Repaired . | . . . . . Machines Dismantled . | . . . . . Machines Sabotaged . | . . . . . Overloaded Fab Kills . | . . . . . Hacking | -11 -10 -9 -9 -8 --------- Run | Yrd Mat Mat Sto Mat Machines Accessed 18 | . 7 5 6 . Terminals 13 | . 5 3 5 . Fabricators . | . . . . . Repair Stations 2 | . . 1 1 . Recycling Units 2 | . 2 . . . Scanalyzers 1 | . . 1 . . Garrison Access . | . . . . . Total Hacks 49 | . 18 16 15 . Successful 28 | . 10 11 7 . Failed 21 | . 8 5 8 . Catastrophic 1 | . 1 . . . Database Lockouts . | . . . . . Manual 1 | . . . 1 . Terminals 35 | . 12 11 12 . Fabricators . | . . . . . Repair Stations 5 | . . 2 3 . Recycling Units 6 | . 6 . . . Scanalyzers 3 | . . 3 . . Garrison Access . | . . . . . Terminal Hacks 17 | . 6 6 5 . Open Door 2 | . . . 2 . Alert Level 2 | . . 1 1 . Maintenance Status 1 | . . 1 . . Reinforcement Status 1 | . . 1 . . Hauler Manifests 5 | . 3 1 1 . Registered Prototypes 1 | . 1 . . . Zone Layout 5 | . 2 2 1 . Fabricator Hacks . | . . . . . Repair Station Hacks 4 | . . 2 2 . Scan Component 2 | . . 1 1 . Repair 2 | . . 1 1 . Recycling Unit Hacks 4 | . 4 . . . Process 1 | . 1 . . . Report Inventory 2 | . 2 . . . Retrieve Matter 1 | . 1 . . . Scanalyzer 3 | . . 3 . . Insert Component 1 | . . 1 . . Analyze 2 | . . 2 . . Garrison Access Hacks . | . . . . . Unauthorized Hacks . | . . . . . Terminals . | . . . . . Fabricators . | . . . . . Repair Stations . | . . . . . Recycling Units . | . . . . . Scanalyzers . | . . . . . Garrison Access . | . . . . . Data Cores Recovered . | . . . . . Used . | . . . . . Hacking Detections 12 | . 4 4 4 . Full Trace Events 6 | . 3 1 2 . Feedback Events . | . . . . . Feedback Blocked . | . . . . . Robot Schematics Acquired . | . . . . . Robots Built . | . . . . . Authchips . | . . . . . Time . | . . . . . Total Robot Build Rating . | . . . . . Part Schematics Acquired 1 | . . 1 . . Parts Built . | . . . . . Authchips . | . . . . . Time . | . . . . . Total Part Build Rating . | . . . . . Parts Repaired 2 | . . 1 1 . Time 76 | . . 38 38 . Parts Recycled . | . . . . . Recycled Matter 177 | . 177 . . . Retrieved Matter 353 | . 353 . . . Retrieved Components . | . . . . . Parts Scanalyzed 1 | . . 1 . . Part Schematics Acquired 1 | . . 1 . . Parts Damaged 1 | . . 1 . . Bothacking | -11 -10 -9 -9 -8 ------------ Run | Yrd Mat Mat Sto Mat Used RIF Installer . | . . . . . Robots Hacked . | . . . . . Non-combat . | . . . . . Combat . | . . . . . Robot Hacks Applied . | . . . . . Relay Couplers Released . | . . . . . Fabnet Peak Effective % . | . . . . . Robots Rewired . | . . . . . Allies Hacked . | . . . . . Hacks Repelled . | . . . . . Allies | -11 -10 -9 -9 -8 -------- Run | Yrd Mat Mat Sto Mat Total Allies . | . . . . . Largest Group . | . . . . . Highest-Rated Group . | . . . . . Highest-Rated Ally . | . . . . . Total Orders . | . . . . . Ally Attacks . | . . . . . Total Damage . | . . . . . Kills . | . . . . . Allies Corrupted . | . . . . . Allies Melted . | . . . . . Intel | -11 -10 -9 -9 -8 ------- Run | Yrd Mat Mat Sto Mat Robot Analysis Total . | . . . . . Derelict Logs Recovered . | . . . . . Drone Launches 8 | . . . 4 4 Drone Recoveries 4 | . . . 2 2 Exploration | -11 -10 -9 -9 -8 ------------- Run | Yrd Mat Mat Sto Mat Turns Passed 3494 | 59 1175 1332 718 210 Spaces Moved 1798 | 33 671 686 325 83 Core 12 | 7 . . . 5 Treads 1449 | 26 394 626 325 78 Legs 337 | . 277 60 . . Wheels . | . . . . . Hover . | . . . . . Flight . | . . . . . Fastest Speed 50 | 50 120 120 165 50 Average Speed 157 | 136 143 163 171 170 Slowest Speed 400 | 160 160 170 250 400 Overloaded Moves . | . . . . . Propulsion Burnouts . | . . . . . Robots Hopped . | . . . . . Cave-ins Triggered . | . . . . . Exploration Rate (%) 39 | 4 86 48 52 7 Regions Visited 4 Branch Regions 1 Pre-discovered Areas . | . . . . . Known Exits Taken 3 | . 1 1 1 . Unknown Exits Taken 1 | 1 . . . . Scrap Searched . | . . . . . Spaces Dug . | . . . . . Terrain Destroyed 114 | . 98 15 1 . Melee . | . . . . . Projectile 1 | . . . 1 . AOE 113 | . 98 15 . . Terrain Rammed . | . . . . . Walls Destroyed . | . . . . . Machines Disabled . | . . . . . Actions | -11 -10 -9 -9 -8 --------- Run | Yrd Mat Mat Sto Mat Total 2197 | 47 793 817 407 133 Wait 84 | . 16 49 5 14 Move 1794 | 32 670 685 324 83 Hop . | . . . . . Pick Up 56 | 8 23 12 10 3 Fast Attach 3 | . 2 1 . . Attach 31 | 6 4 8 8 5 Detach 3 | . . 2 1 . Swap 28 | 1 11 11 4 1 Drop 34 | . 20 9 3 2 Fire 134 | . 47 39 48 . Melee . | . . . . . Ram 23 | . . . . 23 Kick . | . . . . . Crush 7 | . . 1 4 2 Escape Stasis . | . . . . . Rewire . | . . . . . Trap . | . . . . . Miscellaneous . | . . . . . Route ------- -11/Scrapyard -10/Materials (discovered 2 exits: *Mat / *Min) -9/Materials (discovered 3 exits: *Mat / [*Min] / *Sto) -9/Storage -8/Materials History --------- Turn | Location | Event 25 | -11/Scrapyard | Discovered new exit (range 14) 60 | -11/Scrapyard | Entered Materials 311 | -10/Materials | Build established: Mutant 341 | -10/Materials | Discovered new exit (range 16) 363 | -10/Materials | Identified exit to Materials 972 | -10/Materials | Discovered new exit (range 16) 988 | -10/Materials | Identified exit to Mines 1235 | -10/Materials | Entered another Materials area 1235 | -9/Materials | Evolved 2 slots: Utility x2 1541 | -9/Materials | Build established: Skirmisher 1858 | -9/Materials | Discovered new exit (range 4) 1861 | -9/Materials | Identified exit to Materials 1933 | -9/Materials | Repaired Lgt. Nuclear Core 2556 | -9/Materials | Discovered new exit (range 12) 2556 | -9/Materials | Discovered new exit (range 6) 2562 | -9/Materials | Identified exit to Storage 2567 | -9/Materials | Entered Storage 2789 | -9/Storage | Garrison activated, responded to threat 2814 | -9/Storage | Repaired EM Pulse Cannon 2878 | -9/Storage | Core integrity fell below 50% 2960 | -9/Storage | Lost 4 parts (1p2n1w) 3269 | -9/Storage | Lost 3 parts (1p1u1w) 3270 | -9/Storage | Discovered exit to Materials (range 9) 3285 | -9/Storage | Entered Materials 3285 | -8/Materials | Evolved 2 slots: Utility x1, Weapon x1 3488 | -8/Materials | Core integrity fell below 50% 3492 | -8/Materials | Core integrity fell below 20% 3495 | -8/Materials | Destroyed by H-61 Shepherd with Heavy Assault Cannon Last Messages --------------- 03483_ K-01 Serf collects debris. 03483_ Slammed into G-47 Trooper. 03484_ Slug penetrates Wall. 03484_ Lgt. Nuclear Core destroyed. 03484_ U-05 Engineer suffers critical hit (Burn). 03484_ Slammed into G-47 Trooper. 03485_ Transport Network Coupler broken. 03485_ Destabilizing: Short circuit. 03486_ Slammed into G-47 Trooper. 03487_ Penetrated by Slug. 03487_ Slammed into G-47 Trooper. 03489_ Penetrated by Slug. 03489_ Slammed into G-47 Trooper. 03490_ Penetrated by Slug. 03490_ Slammed into G-47 Trooper. 03491_ Penetrated by Slug. 03491_ Knocked back. 03493_ Slammed into H-55 Commando. 03495_ Penetrated by Slug. Map ----- +----------------------------------------------------+ | ?????????????????????????????????????????????????? | | ?????????????????????????????????????????????????? | | ?????????????????????????????????????????????????? | | ?????????????????????????????????????????????????? | | ?????????????????????????????????????????????????? | | ?????????????????????????????????????????????????? | | ??????????????????????? ??????????????????????? | | ??????????????????????? #?????????????????????? | | ??????????????????????# #?????????????????????? | | ??????????????????????# #?????????????????????? | | ??????????????????????# #?????????????????????? | | ??????????????????????# #?????????????????????? | | ??????????????????????# #?????????????????????? | | ??????????????????????# #?????????????????????? | | ??????????????????????# #?????????????????????? | | ??????????????????????# #?????????????????????? | | ??????????????????????# #?????????????????????? | | ??????????????????????# #?????????????????????? | | ??????????????????????# u #?????????????????????? | | ??????????????????????# #?????????????????????? | | ??????????????????????# #?????????????????????? | | ??????????????????????# #????? #??????????????? | | ??????????????????#####%% #####+######+##???????? | | ???????????######## % % %% ????? | | ???????????# # %% % g ????? | | ???????????# # %@%% ????? | | ???????????#""" + ###h################# ?????? | | ???????????#""" # #% #?????????????????? | | ???????????#""" # # #?????????????????? | | ???????????# !# # %k #?????????????????? | | ???????????############ #?????????????????? | | ?###################### #?????????????????? | | + #?????????????????? | | ?###################### #?????????????????? | | ??????????????????????# #?????????????????? | | ??????????????????????# #?????????????????? | | ??????????????????????##########?????????????????? | | ?????????????????????????????????????????????????? | | ?????????????????????????????????????????????????? | | ?????????????????????????????????????????????????? | | ?????????????????????????????????????????????????? | | ?????????????????????????????????????????????????? | | | | | | | | | | | | | | | | | +----------------------------------------------------+ Best States ------------- Heat Dissipation 35 Energy Generation 14 Energy Capacity 250 Matter Stores 300 Matter Capacity 300 Sight Range 16 Robot Scan Range 14 Terrain Scan Density 10 Evasion (%) 55 Recoil Reduction 2 Item Schematics ----------------- Adv. Beam Cannon | -9/Materials | Scanalyzed Robot Schematics ------------------ None Fabricated ------------ Nothing Alien Tech Used ----------------- None Achievements -------------- None Challenges ------------ None Game ------ Seed PhysicsHybridSink Manual? 0 Play Time 00:43:08 Cumulative 10.9 hours Start 2025.03.30 @ 14:47:47 End 2025.03.30 @ 15:30:39 Sessions 1 Manual Loads 0 Difficulty Rogue Special Mode None Game No. 16 Rogue 12 Adventurer 4 Explorer 0 Win Type - Total 0 Types 0/0/0/0/0/0/0/0/0 Lore% 4 Gallery% 18 Achievement% 17 Wizard Run 0 Options --------- Layout 1 ASCII 0 Keyboard 0 Movement Numpad Keybinds 0 Fullscreen 1 Font 32/SmallcapsGlow Map View 50x35 Zoom Use 0% Tactical HUD 1 Map Filters NONE Filters NONE Steam 1 RUN: 2a030407-89d1-42e7-8906-1dc199ce6be2